[Event "FIDE WYCC Girls U14 2023"]
[Site "Montesilvano"]
[Date "2023.11.20"]
[Round "7.17"]
[White "Maklakova, Naomi"]
[Black "Diasamidze, Lulu"]
[Result "*"]
[ECO "A45"]
[WhiteElo "1873"]
[BlackElo "1676"]
[Annotator "NA COMBH"]
[PlyCount "82"]
[EventDate "2023.11.13"]
[EventType "swiss"]
[EventCountry "ITA"]
[SourceTitle "playchess.com"]
[Source "ChessBase"]
[SourceQuality "1"]
[TimeControl "40/5400+30:1800+30"]

1. d4 {[%emt 0:01:14]} Nf6 {[%emt 0:00:06]} 2. Bf4 {[%emt 0:00:53]} e6 {[%emt 0:00:38]} 3. Nf3 {[%emt 0:00:14]} c5 {[%emt 0:00:06]} 4. e3 {[%emt 0:00:13]} cxd4 {[%emt 0:00:39]} 5. exd4 {[%emt 0:00:14]} b6 {[%emt 0:00:37]} 6. Nbd2 {[%emt 0:02:31]} Bb7 {[%emt 0:00:47]} 7. Nc4 {[%emt 0:05:07]} d6 {[%emt 0:02:07]} 8. Bd3 {[%emt 0:04:45]} Be7 {[%emt 0:00:17]} 9. O-O {[%emt 0:00:31]} O-O {[%emt 0:00:15]} 10. Re1 {[%emt 0:01:54]} Qc7 {[%emt 0:03:17]} 11. Ne3 {[%emt 0:14:05]} Nd5 {[%emt 0:05:31]} 12. Nxd5 {[%emt 0:01:46]} Bxd5 {[%emt 0:00:51]} 13. c4 {[%emt 0:03:37]} Bb7 {[%emt 0:01:42]} 14. Ng5 {[%emt 0:13:04]} Bxg5 {[%emt 0:11:05]} 15. Bxg5 {[%emt 0:00:06]} f6 {[%emt 0:04:00]} 16. Bh4 {[%emt 0:08:46]} e5 {[%emt 0:03:26]} 17. d5 {[%emt 0:08:29]} f5 {[%emt 0:02:32]} 18. f3 {[%emt 0:05:56]} Na6 {[%emt 0:01:56]} 19. Rc1 {[%emt 0:02:01]} h6 {[%emt 0:00:59]} 20. a3 {[%emt 0:00:28]} Nc5 {[%emt 0:00:49]} 21. Bb1 {[%emt 0:00:19]} Nd7 {[%emt 0:01:24]} 22. b4 {[%emt 0:01:09]} Rac8 {[%emt 0:00:36]} 23. Qd3 {[%emt 0:00:53]} Ba6 {[%emt 0:10:22]} 24. Ba2 {[%emt 0:02:58]} Qb8 {[%emt 0:03:09]} 25. Kh1 {[%emt 0:05:29]} Kh8 {[%emt 0:01:03]} 26. g4 {[%emt 0:00:52]} e4 {[%emt 0:01:30]} 27. fxe4 {[%emt 0:02:02]} Ne5 {[%emt 0:00:23]} 28. Qe2 {[%emt 0:03:09]} f4 {[%emt 0:04:57]} 29. g5 {[%emt 0:01:58]} f3 {[%emt 0:01:24]} 30. Qf1 {[%emt 0:00:06]} h5 {[%emt 0:03:16]} 31. Bg3 {[%emt 0:01:17]} f2 {[%emt 0:08:59]} 32. Bxf2 {[%emt 0:01:34]} Ng4 {[%emt 0:02:18]} 33. Re2 {[%emt 0:00:22]} Rf3 {[%emt 0:03:21]} 34. Qg2 {[%emt 0:01:49]} Rcf8 {[%emt 0:00:28]} 35. Bd4 {[%emt 0:01:14]} Qd8 {[%emt 0:00:23]} 36. h3 {[%emt 0:00:53]} Qxg5 {[%emt 0:01:11]} 37. Rc3 {[%emt 0:03:14]} Rf1+ {[%emt 0:01:24]} 38. Bg1 {[%emt 0:00:05]} Qh4 {[%emt 0:00:22]} 39. Qg3 {[%emt 0:02:19]} Qxg3 {[%emt 0:05:53]} 40. Rxg3 {[%emt 0:00:00]} Ne5 {[%emt 0:00:00]} 41. b5 {[%emt 0:02:10]} h4 {[%emt 0:02:01]} *

[Event "FIDE WYCC Girls U14 2023"]
[Site "Montesilvano"]
[Date "2023.11.20"]
[Round "7.18"]
[White "Wojs, Alicja"]
[Black "Zagorac, Lara"]
[Result "0-1"]
[ECO "C44"]
[WhiteElo "1630"]
[BlackElo "1866"]
[Annotator "NA COMBH"]
[PlyCount "60"]
[EventDate "2023.11.13"]
[EventType "swiss"]
[EventCountry "ITA"]
[SourceTitle "playchess.com"]
[Source "ChessBase"]
[SourceQuality "1"]
[TimeControl "40/5400+30:1800+30"]

1. e4 {[%emt 0:00:01]} e5 {[%emt 0:00:39]} 2. Nf3 {[%emt 0:00:06]} Nc6 {[%emt 0:00:13]} 3. d4 {[%emt 0:01:11]} exd4 {[%emt 0:00:12]} 4. Nxd4 {[%emt 0:00:23]} Nf6 {[%emt 0:00:34]} 5. Nxc6 {[%emt 0:00:24]} bxc6 {[%emt 0:00:13]} 6. Bd3 {[%emt 0:00:11]} d5 {[%emt 0:02:33]} 7. exd5 {[%emt 0:00:52]} cxd5 {[%emt 0:00:28]} 8. O-O {[%emt 0:00:13]} Be7 {[%emt 0:00:37]} 9. h3 {[%emt 0:02:24]} O-O {[%emt 0:01:03]} 10. Qf3 {[%emt 0:01:02]} Rb8 {[%emt 0:03:40]} 11. Nc3 {[%emt 0:02:34]} Rb6 {[%emt 0:09:45]} 12. b3 {[%emt 0:05:16]} Bb7 {[%emt 0:09:36]} 13. Bf4 {[%emt 0:08:27]} d4 {[%emt 0:25:35]} 14. Ne4 {[%emt 0:00:58]} Nd5 {[%emt 0:01:54]} 15. Nd2 {[%emt 0:17:16]} Nxf4 {[%emt 0:08:09]} 16. Be4 {[%emt 0:03:47]} Bxe4 {[%emt 0:04:08]} 17. Nxe4 {[%emt 0:00:24]} Ng6 {[%emt 0:01:00]} 18. Rad1 {[%emt 0:00:16]} c5 {[%emt 0:02:47]} 19. c3 {[%emt 0:00:18]} Re6 {[%emt 0:01:37]} 20. cxd4 {[%emt 0:00:16]} cxd4 {[%emt 0:00:55]} 21. Ng3 {[%emt 0:01:27]} Bf6 {[%emt 0:01:57]} 22. Rd2 {[%emt 0:01:01]} Qa8 {[%emt 0:00:51]} 23. Qg4 {[%emt 0:00:45]} Qd5 {[%emt 0:02:26]} 24. Rfd1 {[%emt 0:00:55]} Rfe8 {[%emt 0:02:05]} 25. Nh5 {[%emt 0:03:09]} Re4 {[%emt 0:02:48]} 26. Nxf6+ {[%emt 0:00:52]} gxf6 {[%emt 0:00:09]} 27. Rxd4 {[%emt 0:00:29]} Rxg4 {[%emt 0:01:22]} 28. Rxd5 {[%emt 0:00:08]} Rge4 {[%emt 0:00:17]} 29. Kf1 {[%emt 0:00:30]} Kg7 {[%emt 0:00:46]} 30. Rd7 {[%emt 0:00:08]} R8e7 {[%emt 0:00:14]} 0-1

[Event "FIDE WYCC Girls U14 2023"]
[Site "Montesilvano"]
[Date "2023.11.20"]
[Round "7.19"]
[White "Sodgerelt Naranbold"]
[Black "Zhang, Michelle"]
[Result "1-0"]
[ECO "B10"]
[WhiteElo "1419"]
[BlackElo "1833"]
[Annotator "NA COMBH"]
[PlyCount "73"]
[EventDate "2023.11.13"]
[EventType "swiss"]
[EventCountry "ITA"]
[SourceTitle "playchess.com"]
[Source "ChessBase"]
[SourceQuality "1"]
[TimeControl "40/5400+30:1800+30"]

1. e4 {[%emt 0:01:56]} c6 {[%emt 0:00:57]} 2. Nc3 {[%emt 0:01:29]} d5 {[%emt 0:01:52]} 3. Nf3 {[%emt 0:00:44]} dxe4 {[%emt 0:00:43]} 4. Nxe4 {[%emt 0:02:18]} Nf6 {[%emt 0:02:01]} 5. Qe2 {[%emt 0:01:30]} Nxe4 {[%emt 0:01:49]} 6. Qxe4 {[%emt 0:01:29]} Nd7 {[%emt 0:01:56]} 7. Bc4 {[%emt 0:01:34]} Nf6 {[%emt 0:02:06]} 8. Ne5 {[%emt 0:00:34]} e6 {[%emt 0:01:44]} 9. Qe2 {[%emt 0:02:20]} b5 {[%emt 0:07:00]} 10. Nxc6 {[%emt 0:04:06]} Qc7 {[%emt 0:01:29]} 11. Bd3 {[%emt 0:08:52]} a6 {[%emt 0:03:02]} 12. Nd4 {[%emt 0:01:20]} Bb7 {[%emt 0:02:56]} 13. O-O {[%emt 0:01:13]} Bd6 {[%emt 0:02:44]} 14. h3 {[%emt 0:03:41]} O-O {[%emt 0:01:55]} 15. Nf3 {[%emt 0:06:23]} Nd5 {[%emt 0:04:52]} 16. Qe4 {[%emt 0:05:51]} g6 {[%emt 0:05:46]} 17. Qh4 {[%emt 0:06:46]} Nf4 {[%emt 0:09:27]} 18. Ng5 {[%emt 0:00:50]} f6 {[%emt 0:06:37]} 19. Ne4 {[%emt 0:01:03]} Nxd3 {[%emt 0:07:20]} 20. cxd3 {[%emt 0:00:08]} Be7 {[%emt 0:05:18]} 21. b3 {[%emt 0:10:59]} Qc2 {[%emt 0:04:58]} 22. Re1 {[%emt 0:01:24]} Qxd3 {[%emt 0:06:28]} 23. Bb2 {[%emt 0:00:31]} g5 {[%emt 0:05:21]} 24. Nxg5 {[%emt 0:14:28]} fxg5 {[%emt 0:02:23]} 25. Qh6 {[%emt 0:00:13]} Qg6 {[%emt 0:04:07]} 26. Qxg6+ {[%emt 0:00:17]} hxg6 {[%emt 0:00:02]} 27. Rxe6 {[%emt 0:00:08]} Kf7 {[%emt 0:02:16]} 28. Rae1 {[%emt 0:00:02]} Rae8 {[%emt 0:03:33]} 29. Rb6 {[%emt 0:02:00]} Bc8 {[%emt 0:01:37]} 30. Re3 {[%emt 0:00:13]} Bd8 {[%emt 0:01:31]} 31. Rf3+ {[%emt 0:01:21]} Bf5 {[%emt 0:00:33]} 32. Rxa6 {[%emt 0:00:03]} Kg8 {[%emt 0:00:52]} 33. Ra7 {[%emt 0:02:37]} Re7 {[%emt 0:00:47]} 34. Rxe7 {[%emt 0:00:42]} Bxe7 {[%emt 0:00:03]} 35. Re3 {[%emt 0:00:00]} Bd6 {[%emt 0:00:55]} 36. Be5 {[%emt 0:05:56]} Bb4 {[%emt 0:00:54]} 37. d4 {[%emt 0:01:23]} 1-0

[Event "FIDE WYCC Girls U14 2023"]
[Site "Montesilvano"]
[Date "2023.11.20"]
[Round "7.20"]
[White "Li Chen, Helena Joana"]
[Black "Valente, Sofia"]
[Result "1/2-1/2"]
[ECO "B36"]
[WhiteElo "1799"]
[BlackElo "1604"]
[Annotator "NA COMBH"]
[PlyCount "72"]
[EventDate "2023.11.13"]
[EventType "swiss"]
[EventCountry "ITA"]
[SourceTitle "playchess.com"]
[Source "ChessBase"]
[SourceQuality "1"]
[TimeControl "40/5400+30:1800+30"]

1. e4 {[%emt 0:00:02]} c5 {[%emt 0:00:29]} 2. Nf3 {[%emt 0:00:05]} Nc6 {[%emt 0:00:09]} 3. d4 {[%emt 0:00:05]} cxd4 {[%emt 0:00:13]} 4. Nxd4 {[%emt 0:00:05]} g6 {[%emt 0:01:28]} 5. c4 {[%emt 0:00:13]} Nf6 {[%emt 0:01:06]} 6. Nc3 {[%emt 0:00:07]} d6 {[%emt 0:00:25]} 7. Be2 {[%emt 0:00:07]} Bg7 {[%emt 0:01:23]} 8. Be3 {[%emt 0:00:34]} O-O {[%emt 0:01:17]} 9. O-O {[%emt 0:00:16]} Bd7 {[%emt 0:01:17]} 10. h3 {[%emt 0:00:13]} Nxd4 {[%emt 0:00:31]} 11. Bxd4 {[%emt 0:00:06]} Bc6 {[%emt 0:01:05]} 12. Qc2 {[%emt 0:00:07]} a5 {[%emt 0:01:47]} 13. b3 {[%emt 0:00:23]} Nd7 {[%emt 0:01:31]} 14. Bxg7 {[%emt 0:00:23]} Kxg7 {[%emt 0:00:07]} 15. Rad1 {[%emt 0:00:06]} Qb6 {[%emt 0:02:05]} 16. Bg4 {[%emt 0:07:23]} Nc5 {[%emt 0:05:08]} 17. Nd5 {[%emt 0:03:28]} Bxd5 {[%emt 0:01:03]} 18. Rxd5 {[%emt 0:00:15]} Rfd8 {[%emt 0:05:59]} 19. Qc3+ {[%emt 0:12:17]} f6 {[%emt 0:03:01]} 20. Qe3 {[%emt 0:03:44]} a4 {[%emt 0:12:50]} 21. Rb1 {[%emt 0:00:53]} axb3 {[%emt 0:01:20]} 22. axb3 {[%emt 0:00:06]} Ra3 {[%emt 0:02:29]} 23. Bd1 {[%emt 0:01:08]} Qb4 {[%emt 0:07:42]} 24. f4 {[%emt 0:03:51]} Qxc4 {[%emt 0:05:33]} 25. Rd4 {[%emt 0:01:53]} Qb5 {[%emt 0:06:40]} 26. e5 {[%emt 0:03:49]} fxe5 {[%emt 0:05:18]} 27. fxe5 {[%emt 0:00:09]} Qb6 {[%emt 0:11:02]} 28. Rh4 {[%emt 0:14:41]} Nd7 {[%emt 0:02:37]} 29. Qxb6 {[%emt 0:00:58]} Nxb6 {[%emt 0:00:18]} 30. Rb4 {[%emt 0:00:09]} Nd5 {[%emt 0:04:08]} 31. Rxb7 {[%emt 0:00:10]} dxe5 {[%emt 0:00:52]} 32. Bf3 {[%emt 0:00:16]} Kf6 {[%emt 0:01:09]} 33. Rd1 {[%emt 0:00:17]} e6 {[%emt 0:02:04]} 34. Be4 {[%emt 0:03:49]} Kg5 {[%emt 0:09:09]} 35. g3 {[%emt 0:06:58]} Rf8 {[%emt 0:02:51]} 36. Bxd5 {[%emt 0:06:00]} exd5 {[%emt 0:00:10]} 1/2-1/2

[Event "FIDE WYCC Girls U14 2023"]
[Site "Montesilvano"]
[Date "2023.11.20"]
[Round "7.21"]
[White "Namala, Dhanvi"]
[Black "Montano Vicente, Guadalupe"]
[Result "1/2-1/2"]
[ECO "B90"]
[WhiteElo "1388"]
[BlackElo "1794"]
[Annotator "NA COMBH"]
[PlyCount "95"]
[EventDate "2023.11.13"]
[EventType "swiss"]
[EventCountry "ITA"]
[SourceTitle "playchess.com"]
[Source "ChessBase"]
[SourceQuality "1"]
[TimeControl "40/5400+30:1800+30"]

1. e4 {[%emt 0:00:03]} c5 {[%emt 0:00:16]} 2. Nf3 {[%emt 0:00:05]} d6 {[%emt 0:00:04]} 3. d4 {[%emt 0:00:08]} cxd4 {[%emt 0:00:02]} 4. Nxd4 {[%emt 0:00:08]} Nf6 {[%emt 0:00:04]} 5. Nc3 {[%emt 0:00:08]} a6 {[%emt 0:00:02]} 6. Bd3 {[%emt 0:00:07]} g6 {[%emt 0:01:32]} 7. f3 {[%emt 0:00:26]} Bg7 {[%emt 0:02:41]} 8. Be3 {[%emt 0:04:07]} O-O {[%emt 0:03:57]} 9. O-O {[%emt 0:01:17]} Qc7 {[%emt 0:01:46]} 10. Qd2 {[%emt 0:03:42]} Re8 {[%emt 0:03:59]} 11. Kh1 {[%emt 0:03:08]} Nbd7 {[%emt 0:02:26]} 12. Rad1 {[%emt 0:05:54]} b5 {[%emt 0:04:36]} 13. a4 {[%emt 0:04:31]} bxa4 {[%emt 0:04:45]} 14. Nxa4 {[%emt 0:01:57]} Bb7 {[%emt 0:01:46]} 15. c4 {[%emt 0:04:50]} Bc6 {[%emt 0:06:02]} 16. Nxc6 {[%emt 0:02:17]} Qxc6 {[%emt 0:02:01]} 17. Qa5 {[%emt 0:04:00]} Ne5 {[%emt 0:28:49]} 18. Nb6 {[%emt 0:08:02]} Rab8 {[%emt 0:01:40]} 19. Be2 {[%emt 0:02:56]} Nfd7 {[%emt 0:02:45]} 20. Nxd7 {[%emt 0:01:22]} Nxd7 {[%emt 0:00:29]} 21. b4 {[%emt 0:02:32]} Bc3 {[%emt 0:01:18]} 22. Bd2 {[%emt 0:03:23]} Bd4 {[%emt 0:02:36]} 23. Qd5 {[%emt 0:03:27]} Qxd5 {[%emt 0:03:35]} 24. cxd5 {[%emt 0:04:39]} Rb6 {[%emt 0:03:49]} 25. Rc1 {[%emt 0:14:09]} e6 {[%emt 0:01:40]} 26. Rc7 {[%emt 0:02:01]} Nf6 {[%emt 0:01:15]} 27. dxe6 {[%emt 0:01:11]} fxe6 {[%emt 0:00:54]} 28. Rfc1 {[%emt 0:03:19]} d5 {[%emt 0:03:16]} 29. Bh6 {[%emt 0:08:57]} Rxb4 {[%emt 0:03:33]} 30. exd5 {[%emt 0:02:49]} Nxd5 {[%emt 0:03:07]} 31. Rc8 {[%emt 0:01:05]} Rxc8 {[%emt 0:01:02]} 32. Rxc8+ {[%emt 0:00:03]} Kf7 {[%emt 0:00:05]} 33. Bxa6 {[%emt 0:01:45]} Bc3 {[%emt 0:02:54]} 34. Bd3 {[%emt 0:03:54]} Ra4 {[%emt 0:03:20]} 35. Rb8 {[%emt 0:01:53]} Rd4 {[%emt 0:02:44]} 36. Rb7+ {[%emt 0:01:00]} Ne7 {[%emt 0:00:49]} 37. Be2 {[%emt 0:01:11]} Bd2 {[%emt 0:00:53]} 38. Bxd2 {[%emt 0:01:47]} Rxd2 {[%emt 0:00:11]} 39. Bf1 {[%emt 0:00:17]} Kf6 {[%emt 0:00:29]} 40. Kg1 {[%emt 0:00:00]} Nf5 {[%emt 0:00:00]} 41. Rb3 {[%emt 0:04:12]} h5 {[%emt 0:07:01]} 42. Rd3 {[%emt 0:02:39]} Rb2 {[%emt 0:00:54]} 43. Rc3 {[%emt 0:03:49]} h4 {[%emt 0:01:41]} 44. Rc4 {[%emt 0:03:25]} g5 {[%emt 0:01:18]} 45. Re4 {[%emt 0:01:23]} Rd2 {[%emt 0:01:24]} 46. Re2 {[%emt 0:01:44]} Rd4 {[%emt 0:00:18]} 47. Kf2 {[%emt 0:02:45]} g4 {[%emt 0:02:09]} 48. Re4 {[%emt 0:02:42]} 1/2-1/2

[Event "FIDE WYCC Girls U14 2023"]
[Site "Montesilvano"]
[Date "2023.11.20"]
[Round "7.22"]
[White "Stankovic, Andrea"]
[Black "Mohd Afif, Ainul Mardhiah"]
[Result "*"]
[WhiteElo "1768"]
[BlackElo "1478"]
[Annotator "NA COMBH"]
[PlyCount "76"]
[EventDate "2023.11.13"]
[EventType "swiss"]
[EventCountry "ITA"]
[SourceTitle "playchess.com"]
[Source "ChessBase"]
[SourceQuality "1"]
[TimeControl "40/5400+30:1800+30"]

1. d4 {[%emt 0:00:02]} Nf6 {[%emt 0:00:15]} 2. Nf3 {[%emt 0:00:05]} d5 {[%emt 0:00:05]} 3. c4 {[%emt 0:00:06]} e6 {[%emt 0:00:16]} 4. Nc3 {[%emt 0:00:34]} c5 {[%emt 0:00:07]} 5. e3 {[%emt 0:05:59]} Nc6 {[%emt 0:02:26]} 6. Be2 {[%emt 0:03:44]} Be7 {[%emt 0:02:13]} 7. O-O {[%emt 0:00:20]} O-O {[%emt 0:00:28]} 8. Ne5 {[%emt 0:00:50]} a6 {[%emt 0:02:46]} 9. a4 {[%emt 0:01:59]} Qc7 {[%emt 0:00:56]} 10. f4 {[%emt 0:08:09]} cxd4 {[%emt 0:01:39]} 11. Nxc6 {[%emt 0:00:23]} bxc6 {[%emt 0:01:28]} 12. exd4 {[%emt 0:00:22]} c5 {[%emt 0:09:42]} 13. Be3 {[%emt 0:04:50]} Rd8 {[%emt 0:04:41]} 14. cxd5 {[%emt 0:02:46]} exd5 {[%emt 0:01:19]} 15. Bd3 {[%emt 0:05:19]} Ng4 {[%emt 0:14:05]} 16. Bd2 {[%emt 0:03:21]} cxd4 {[%emt 0:11:02]} 17. Ne2 {[%emt 0:04:06]} Ne3 {[%emt 0:03:30]} 18. Qc1 {[%emt 0:00:18]} Qa7 {[%emt 0:10:14]} 19. Re1 {[%emt 0:02:51]} Nc4 {[%emt 0:06:36]} 20. Kh1 {[%emt 0:02:41]} Nxd2 {[%emt 0:03:57]} 21. Qxd2 {[%emt 0:00:07]} Bf6 {[%emt 0:00:54]} 22. b4 {[%emt 0:02:03]} Bd7 {[%emt 0:02:17]} 23. f5 {[%emt 0:03:32]} Rab8 {[%emt 0:04:42]} 24. Reb1 {[%emt 0:10:03]} Be8 {[%emt 0:04:38]} 25. Nf4 {[%emt 0:01:58]} Bg5 {[%emt 0:02:26]} 26. Qf2 {[%emt 0:00:13]} Qe7 {[%emt 0:05:02]} 27. Re1 {[%emt 0:08:04]} Qd6 {[%emt 0:01:53]} 28. Nh3 {[%emt 0:03:51]} Be3 {[%emt 0:01:09]} 29. Qh4 {[%emt 0:02:09]} f6 {[%emt 0:01:24]} 30. Nf2 {[%emt 0:02:46]} Rxb4 {[%emt 0:01:25]} 31. Ng4 {[%emt 0:00:39]} Bg5 {[%emt 0:00:46]} 32. Qf2 {[%emt 0:00:25]} h5 {[%emt 0:00:47]} 33. Re6 {[%emt 0:00:31]} Qb8 {[%emt 0:00:32]} 34. h4 {[%emt 0:03:51]} Bf4 {[%emt 0:00:32]} 35. Rf1 {[%emt 0:01:52]} Bg3 {[%emt 0:00:23]} 36. Nxf6+ {[%emt 0:03:28]} gxf6 {[%emt 0:00:10]} 37. Qf3 {[%emt 0:02:59]} Be5 {[%emt 0:00:51]} 38. g4 {[%emt 0:00:26]} Rb2 {[%emt 0:00:36]} *

[Event "FIDE WYCC Girls U14 2023"]
[Site "Montesilvano"]
[Date "2023.11.20"]
[Round "7.23"]
[White "Hong, Jueun"]
[Black "Mueller, Riyanna"]
[Result "*"]
[ECO "B01"]
[WhiteElo "1299"]
[BlackElo "1754"]
[Annotator "NA COMBH"]
[PlyCount "68"]
[EventDate "2023.11.13"]
[EventType "swiss"]
[EventCountry "ITA"]
[SourceTitle "playchess.com"]
[Source "ChessBase"]
[SourceQuality "1"]
[TimeControl "40/5400+30:1800+30"]

1. e4 {[%emt 0:00:02]} d5 {[%emt 0:00:09]} 2. exd5 {[%emt 0:00:07]} Qxd5 {[%emt 0:00:08]} 3. Nc3 {[%emt 0:00:09]} Qd6 {[%emt 0:00:09]} 4. d4 {[%emt 0:00:12]} Nf6 {[%emt 0:00:16]} 5. Nf3 {[%emt 0:00:21]} a6 {[%emt 0:00:19]} 6. g3 {[%emt 0:00:34]} Bg4 {[%emt 0:00:50]} 7. Bg2 {[%emt 0:00:53]} c6 {[%emt 0:00:47]} 8. Bf4 {[%emt 0:03:47]} Qd8 {[%emt 0:01:21]} 9. O-O {[%emt 0:02:08]} e6 {[%emt 0:00:58]} 10. Re1 {[%emt 0:05:30]} Bd6 {[%emt 0:02:22]} 11. Be5 Be7 {[%emt 0:01:09]} 12. Qd2 {[%emt 0:13:51]} Bxf3 {[%emt 0:02:16]} 13. Bxf3 {[%emt 0:00:11]} Nbd7 {[%emt 0:00:14]} 14. Bf4 {[%emt 0:06:34]} O-O {[%emt 0:00:30]} 15. Rad1 {[%emt 0:03:50]} Nb6 {[%emt 0:01:15]} 16. Be5 {[%emt 0:04:53]} Rc8 {[%emt 0:12:38]} 17. Qe2 {[%emt 0:02:49]} Nbd5 {[%emt 0:03:27]} 18. Ne4 {[%emt 0:09:06]} Nxe4 {[%emt 0:06:21]} 19. Bxe4 {[%emt 0:11:56]} Nf6 {[%emt 0:06:34]} 20. Bd3 {[%emt 0:01:40]} Qa5 {[%emt 0:03:30]} 21. g4 {[%emt 0:05:36]} Qxa2 {[%emt 0:02:47]} 22. g5 {[%emt 0:01:21]} Nd7 {[%emt 0:00:07]} 23. Qh5 {[%emt 0:04:53]} g6 {[%emt 0:00:43]} 24. Qh6 {[%emt 0:00:47]} Nxe5 {[%emt 0:01:02]} 25. dxe5 {[%emt 0:00:25]} Kh8 {[%emt 0:06:10]} 26. h4 {[%emt 0:07:37]} Rg8 {[%emt 0:00:35]} 27. h5 {[%emt 0:02:08]} Bf8 {[%emt 0:00:15]} 28. Qxh7+ {[%emt 0:05:49]} Kxh7 {[%emt 0:00:08]} 29. Re3 {[%emt 0:00:47]} Kg7 {[%emt 0:01:15]} 30. Rh3 {[%emt 0:01:22]} gxh5 {[%emt 0:00:14]} 31. Rxh5 {[%emt 0:02:47]} Rh8 {[%emt 0:00:09]} 32. Rxh8 {[%emt 0:01:29]} Kxh8 {[%emt 0:00:06]} 33. Re1 {[%emt 0:01:48]} Qxb2 {[%emt 0:00:48]} 34. Re3 {[%emt 0:00:15]} Bg7 {[%emt 0:00:35]} *

[Event "FIDE WYCC Girls U14 2023"]
[Site "Montesilvano"]
[Date "2023.11.20"]
[Round "7.24"]
[White "Stefan, Iulia-Cristiana"]
[Black "Aswinika Mani R"]
[Result "1/2-1/2"]
[ECO "D02"]
[WhiteElo "1748"]
[BlackElo "1472"]
[Annotator "NA COMBH"]
[PlyCount "76"]
[EventDate "2023.11.13"]
[EventType "swiss"]
[EventCountry "ITA"]
[SourceTitle "playchess.com"]
[Source "ChessBase"]
[SourceQuality "1"]
[TimeControl "40/5400+30:1800+30"]

1. d4 {[%emt 0:00:02]} d5 {[%emt 0:00:20]} 2. Nf3 {[%emt 0:00:05]} Nf6 {[%emt 0:00:05]} 3. Bf4 {[%emt 0:00:04]} e6 {[%emt 0:00:23]} 4. e3 {[%emt 0:00:05]} Bd6 {[%emt 0:02:01]} 5. Ne5 {[%emt 0:00:12]} O-O {[%emt 0:01:22]} 6. Nd2 {[%emt 0:00:12]} c5 {[%emt 0:01:11]} 7. c3 {[%emt 0:00:07]} c4 {[%emt 0:01:32]} 8. b3 {[%emt 0:09:35]} b5 {[%emt 0:00:45]} 9. a4 {[%emt 0:03:23]} b4 {[%emt 0:00:33]} 10. bxc4 {[%emt 0:11:11]} bxc3 {[%emt 0:07:26]} 11. Nb1 {[%emt 0:01:39]} c2 {[%emt 0:05:15]} 12. Qxc2 {[%emt 0:00:25]} Bb4+ {[%emt 0:00:31]} 13. Nd2 {[%emt 0:05:43]} Ne4 {[%emt 0:00:15]} 14. Nef3 {[%emt 0:00:35]} g5 {[%emt 0:03:57]} 15. Bxb8 {[%emt 0:01:08]} Rxb8 {[%emt 0:04:30]} 16. Bd3 {[%emt 0:07:25]} Bc3 {[%emt 0:08:49]} 17. Ra2 {[%emt 0:12:36]} Bxd2+ {[%emt 0:02:22]} 18. Nxd2 {[%emt 0:00:13]} Nxd2 {[%emt 0:00:20]} 19. Kxd2 {[%emt 0:03:03]} e5 {[%emt 0:05:10]} 20. dxe5 {[%emt 0:05:24]} Be6 {[%emt 0:09:08]} 21. c5 {[%emt 0:10:07]} d4 {[%emt 0:00:29]} 22. Rb2 {[%emt 0:04:56]} dxe3+ {[%emt 0:04:16]} 23. Kxe3 {[%emt 0:00:55]} Qd5 {[%emt 0:02:10]} 24. Rxb8 {[%emt 0:08:21]} Qxe5+ {[%emt 0:00:25]} 25. Kd2 {[%emt 0:01:24]} Rxb8 {[%emt 0:00:35]} 26. Re1 {[%emt 0:04:48]} Qf4+ {[%emt 0:04:50]} 27. Ke2 {[%emt 0:00:31]} Re8 {[%emt 0:04:54]} 28. Kf1 {[%emt 0:02:05]} Qxh2 {[%emt 0:01:01]} 29. Re3 {[%emt 0:00:53]} Qh1+ {[%emt 0:02:29]} 30. Ke2 {[%emt 0:00:04]} Qxg2 {[%emt 0:00:24]} 31. Bxh7+ {[%emt 0:00:42]} Kg7 {[%emt 0:02:23]} 32. Bf5 {[%emt 0:00:26]} Qd5 {[%emt 0:07:05]} 33. Qc3+ {[%emt 0:01:59]} f6 {[%emt 0:01:17]} 34. Bxe6 {[%emt 0:00:23]} Rxe6 {[%emt 0:00:06]} 35. Rxe6 {[%emt 0:00:27]} Qxe6+ {[%emt 0:00:02]} 36. Kf1 {[%emt 0:01:19]} Kf7 {[%emt 0:01:03]} 37. Qb4 {[%emt 0:02:09]} Qd5 {[%emt 0:02:43]} 38. Qc3 {[%emt 0:02:26]} Qd1+ {[%emt 0:01:34]} 1/2-1/2

[Event "FIDE WYCC Girls U14 2023"]
[Site "Montesilvano"]
[Date "2023.11.20"]
[Round "7.25"]
[White "Skramstad, Oda Kofoed"]
[Black "Jiang, Hanxi"]
[Result "*"]
[WhiteElo "1801"]
[BlackElo "1575"]
[Annotator "NA COMBH"]
[PlyCount "70"]
[EventDate "2023.11.13"]
[EventType "swiss"]
[EventCountry "ITA"]
[SourceTitle "playchess.com"]
[Source "ChessBase"]
[SourceQuality "1"]
[TimeControl "40/5400+30:1800+30"]

1. d4 {[%emt 0:00:50]} Nf6 {[%emt 0:00:04]} 2. c4 {[%emt 0:00:34]} g6 {[%emt 0:00:05]} 3. Nc3 {[%emt 0:00:16]} Bg7 {[%emt 0:00:11]} 4. e4 {[%emt 0:00:08]} d6 {[%emt 0:00:03]} 5. Nf3 {[%emt 0:00:47]} O-O {[%emt 0:00:07]} 6. Be2 {[%emt 0:00:13]} e5 {[%emt 0:00:10]} 7. O-O {[%emt 0:00:59]} exd4 {[%emt 0:00:17]} 8. Nxd4 {[%emt 0:00:29]} Re8 {[%emt 0:00:05]} 9. f3 {[%emt 0:03:33]} c6 {[%emt 0:00:14]} 10. Nc2 {[%emt 0:10:22]} Na6 {[%emt 0:10:25]} 11. Kh1 {[%emt 0:05:58]} Nc7 {[%emt 0:00:23]} 12. Bg5 {[%emt 0:18:31]} h6 {[%emt 0:17:18]} 13. Bh4 {[%emt 0:02:11]} a6 {[%emt 0:13:13]} 14. Ne3 {[%emt 0:05:12]} b5 {[%emt 0:03:36]} 15. Qd2 {[%emt 0:07:20]} g5 {[%emt 0:14:06]} 16. Bg3 {[%emt 0:07:19]} b4 {[%emt 0:08:41]} 17. Na4 {[%emt 0:03:12]} d5 {[%emt 0:01:53]} 18. Nb6 {[%emt 0:02:07]} Rb8 {[%emt 0:04:22]} 19. Nxc8 {[%emt 0:00:31]} Rxc8 {[%emt 0:00:51]} 20. Nf5 {[%emt 0:00:33]} Nh5 {[%emt 0:04:50]} 21. Bd6 {[%emt 0:03:53]} a5 {[%emt 0:04:01]} 22. Rad1 {[%emt 0:06:48]} dxc4 {[%emt 0:04:32]} 23. Bxc4 {[%emt 0:01:59]} Ne6 {[%emt 0:00:44]} 24. Qc2 {[%emt 0:02:10]} Qf6 {[%emt 0:02:32]} 25. e5 {[%emt 0:01:32]} Qd8 {[%emt 0:01:47]} 26. Bxb4 {[%emt 0:02:44]} Qc7 {[%emt 0:02:03]} 27. Bd6 {[%emt 0:03:01]} Qb7 {[%emt 0:00:34]} 28. b3 {[%emt 0:01:08]} Nhf4 {[%emt 0:02:20]} 29. g3 {[%emt 0:01:57]} Ng6 {[%emt 0:00:53]} 30. Qe2 {[%emt 0:01:27]} Ra8 {[%emt 0:01:12]} 31. Qb2 {[%emt 0:01:11]} Kh7 {[%emt 0:00:32]} 32. Nxg7 {[%emt 0:01:17]} Kxg7 {[%emt 0:00:50]} 33. Qg2 {[%emt 0:01:12]} Kh8 {[%emt 0:01:27]} 34. Qh3 {[%emt 0:00:30]} Kh7 {[%emt 0:00:26]} 35. Qf5 {[%emt 0:00:22]} a4 {[%emt 0:00:58]} *